Cogmind - Beta 14 @@@ ROGUE MODE // 2024.08.12 @ 14:07:44 Player: Sionnis Result: Destroyed by S-10 Pest with Light Assault Rifle Performance ------------- Evolutions (0) 0 Regions Visited (2) 400 Robots Destroyed (32) 160 Value Destroyed (971) 971 Prototype IDs (0) 0 Alien Tech Used (0) 0 Bonus (0) 0 TOTAL SCORE: 1531 Bonus ------- None Cogmind --------- Core Integrity 0/250 Matter 298/300 Energy 265/265 System Corruption 4% Temperature Cool (0) Movement Core (500) Ox9 Location -10/Subcaves Parts ------- > --- POWER (1) -------- Improved Ion Engine > --- PROPULSION (2) --- (None) > --- UTILITY (2) ------ Medium Storage Unit Targeting Computer > --- WEAPON (2) ------- Subdweller Beam Cannon Subdweller Machine Gun > --- INVENTORY (10) --- Improved Ion Engine Improved Ion Engine Light Nuclear Core Compact Wheel Subdweller Monowheel Subdweller Laser Subdweller Laser Grenade Launcher Datajack Peak State ------------ > --- POWER ------------ Improved Ion Engine > --- PROPULSION ------- Light Treads Spiked Treads > --- UTILITY ---------- Medium Storage Unit Targeting Computer > --- WEAPON ----------- Subdweller Laser Light EM Pulse Cannon > --- INVENTORY -------- Improved Ion Engine Improved Ion Engine Subdweller Power Source Light Nuclear Core Compact Wheel Subdweller Laser Subdweller Laser Light EM Pulse Cannon Grenade Launcher Datajack [Rating: 12] Favorites ----------- Power Improved Ion Engine Engine Improved Ion Engine Propulsion Light Treads Treads Light Treads Wheel Compact Wheel Utility Medium Storage Unit Storage Medium Storage Unit Processor Targeting Computer Protection Weapon Shielding Weapon Light EM Pulse Cannon Energy Gun Subdweller Laser Energy Cannon Light EM Pulse Cannon Ballistic Gun Subdweller Machine Gun Build | -11 -10 -10 ------- Run | Yrd Mat Sub Slots Evolved . | . . . Power . | . . . Propulsion . | . . . Utility . | . . . Weapon . | . . . Parts Attached 28 | 6 7 15 Power 5 | 1 1 3 Engine 5 | 1 1 3 Core . | . . . Reactor . | . . . Propulsion 6 | 2 1 3 Treads 5 | 2 1 2 Leg . | . . . Wheel 1 | . . 1 Hover . | . . . Flight . | . . . Utility 4 | 1 3 . Device . | . . . Storage 2 | 1 1 . Processor 1 | . 1 . Hackware . | . . . Protection 1 | . 1 . Artifact . | . . . Weapon 13 | 2 2 9 Energy Gun 1 | . . 1 Energy Cannon 6 | . 2 4 Ballistic Gun 6 | 2 . 4 Ballistic Cannon . | . . . Launcher . | . . . Special Weapon . | . . . Impact Weapon . | . . . Slashing Weapon . | . . . Piercing Weapon . | . . . Special Melee Weapon . | . . . Unidentified Prototypes . | . . . Parts Lost 7 | . 3 4 Power 1 | . 1 . Propulsion 4 | . . 4 Utility . | . . . Weapon 2 | . 2 . Highest Loss Streak 3 | . 3 2 To Critical Strikes . | . . . Average Slot Usage (%) 95 | . 94 96 Engine 13 | . 13 13 Treads 25 | . 28 24 Storage 14 | . 14 14 Processor 11 | . 6 14 Energy Gun 5 | . . 7 Energy Cannon 14 | . 23 10 Ballistic Gun 8 | . 3 10 Peak Build Rating 12 | 6 11 12 Average Rating 10 | 4 9 11 On Entrance 5 | . 6 11 Naked Turns . | . . . Heaviest Build 29 | 10 26 29 Greatest Support 40 | 40 40 40 Greatest Overweight (x) 9 | 1 . 9 Average Overweight (x) . | . . . Largest Inventory Capacity 10 | 8 10 10 Average Capacity 9 | 7 9 10 Most Carried 10 | 2 10 10 Average Carried 9 | 1 7 9 Final Capacity 10 | 8 10 10 Final Carried 10 | 2 10 9 Class Distribution -------------------- 100% | Mutant Dominant Class ---------------- Mutant | -10/Materials Mutant | -10/Subcaves Resources | -11 -10 -10 ----------- Run | Yrd Mat Sub Matter Collected 694 | 252 162 280 Remotely . | . . . Salvage Created 1220 | . 731 489 Parts 70 | . 37 33 Haulers Intercepted 2 | . 2 . Recyclers Shooed . | . . . Parts Field Recycled . | . . . Retrieved Matter . | . . . Parts Self-Destructed 8 | . . 8 Prevented . | . . . Kills | -11 -10 -10 ------- Run | Yrd Mat Sub Combat Hostiles Destroyed 24 | . 10 14 Guns 13 | . 5 8 Cannons 9 | . 4 5 Classes Destroyed 8 | . 6 2 Worker 1 | . 1 . Hauler 2 | . 2 . Recycler 1 | . 1 . Operator 1 | . 1 . Watcher 3 | . 3 . Swarmer 2 | . . 2 Grunt 11 | . 10 1 Subdweller 11 | . . 11 Best Kill Streak 5 | . 5 2 Combat Bots Only 2 | . 2 2 Max Kills in Single Turn 2 | . 2 1 Gunslinging . | . . . Exploded . | . . . Melee . | . . . Uniques/NPCs Destroyed . | . . . Combat | -11 -10 -10 -------- Run | Yrd Mat Sub Hostile Shots Fired 123 | . 60 63 Missed 35 | . 16 19 Damage Taken 1597 | . 639 958 Core 258 | . 122 136 Absorbed by Shields . | . . . Regen/Repaired (Parts) 116 | . 116 . Core Remaining (%) 100 | 100 . . Volleys Fired 107 | . 51 56 Largest 2 | . 2 2 Hottest 140 | . 112 140 Shots Fired 203 | . 97 106 Gun 128 | . 57 71 Cannon 75 | . 40 35 Launcher . | . . . Special . | . . . Kinetic 89 | . 57 32 Thermal 64 | . . 64 Explosive . | . . . Electromagnetic 50 | . 40 10 Robot Hit Streak 21 | . 21 12 Robot Miss Streak 3 | . 3 1 Penetration Max . | . . . Secondary Targets 1 | . 1 . Max Gunslinging Chain 1 | . 1 . Shots Hit Robots 139 | . 73 66 Core Hits 48 | . 27 21 Critical Kills 1 | . . 1 Critical Parts Destroyed . | . . . Critical Strikes 4 | . 1 3 Meltdown 1 | . . 1 Destroy 1 | . . 1 Corrupt 2 | . 1 1 Melee Attacks . | . . . Impact . | . . . Slashing . | . . . Piercing . | . . . Sneak Attacks . | . . . Combat Hostiles . | . . . Follow-up Attacks . | . . . Damage Inflicted 2753 | . 1255 1498 Guns 1231 | . 348 883 Cannons 1447 | . 832 615 Explosions 75 | . 75 . Melee . | . . . Ramming . | . . . Kinetic 725 | . 348 377 Thermal 1025 | . 75 950 Explosive . | . . . Electromagnetic 1003 | . 832 171 Impact . | . . . Slashing . | . . . Piercing . | . . . Highest Corruption 4 | . 4 4 Average Corruption 3 | . 3 4 Corruption Purged . | . . . Corruption Blocked . | . . . Effects 109 | . 28 81 Message Errors 35 | . 10 25 Matter Fused 17 | . 7 10 Heat Flow Errors 15 | . 4 11 Energy Discharges 7 | . . 7 Parts Rejected 2 | . . 2 Data Loss (minor) 18 | . 2 16 Data Loss (major) 5 | . 3 2 Misfires 7 | . 1 6 Alerts 2 | . 1 1 Weapon Failures 1 | . . 1 Overload Shots . | . . . Overflow Damage 53 | . 53 . Projectiles 45 | . 45 . Explosions 8 | . 8 . Melee . | . . . Knockbacks . | . . . Impact . | . . . Kinetic . | . . . Secondary . | . . . Self-Inflicted Damage 24 | . 24 . Shots 1 | . 1 . Rammed . | . . . Targets Rammed . | . . . Kicked . | . . . Crushed . | . . . Highest Temperature 288 | . 288 251 Average Temperature 100 | . 101 100 Received Heat Transfer 501 | . 411 90 Effects 3 | . . 3 Interference 3 | . . 3 Siege Activations . | . . . Robots Corrupted 2 | . 2 . Combat Hostiles 1 | . 1 . Parts Fried 8 | . 7 1 Impact Corruptions . | . . . Robots Melted 1 | . . 1 Combat Hostiles 1 | . . 1 Parts Melted 2 | . . 2 Heat Transferred 1292 | . 100 1192 Parts Sabotaged . | . . . Parts Stolen . | . . . Parts Stripped . | . . . Power Chain Reactions 2 | . 2 . Alert | -11 -10 -10 ------- Run | Yrd Mat Sub Peak Influence 216 | . 216 . Initial . | . . . Average 62 | . 65 . Maximum Alert Level 1 | . 1 . Low Security (%) 96 | 100 95 . Level 1 3 | . 4 . Level 2 . | . . . Level 3 . | . . . Level 4 . | . . . Level 5 . | . . . High Security . | . . . Max Security . | . . . Squads Dispatched 3 | . 3 . Investigation 1 | . 1 . Extermination . | . . . Reinforcement 2 | . 2 . Assault . | . . . Garrison . | . . . Intercept . | . . . Searches Triggered . | . . . Construction Impeded . | . . . Haulers Reinforced . | . . . Active Scanning Responses . | . . . Cargo Convoy Interrupts . | . . . Stealth | -11 -10 -10 --------- Run | Yrd Mat Sub Distress Signals . | . . . Communications Jammed . | . . . Distress Signals . | . . . Times Spotted 30 | . 14 16 Peak Tracking Total 4 | . 4 4 Tactical Retreats 1 | . . 1 Traps | -11 -10 -10 ------- Run | Yrd Mat Sub Traps Triggered 4 | . 3 1 Indirectly . | . . . Trap Hack Attempts . | . . . Triggered . | . . . Disarmed . | . . . Reprogrammed . | . . . Reused . | . . . Traps Extracted . | . . . Installed . | . . . Triggered . | . . . Machines | -11 -10 -10 ---------- Run | Yrd Mat Sub Machines Disabled 1 | . 1 . Max in Single Turn 1 | . 1 . Machines Repaired . | . . . Machines Dismantled . | . . . Machines Sabotaged . | . . . Overloaded Fab Kills . | . . . Hacking | -11 -10 -10 --------- Run | Yrd Mat Sub Machines Accessed 6 | . 6 . Terminals 5 | . 5 . Fabricators . | . . . Repair Stations 1 | . 1 . Recycling Units . | . . . Scanalyzers . | . . . Garrison Access . | . . . Total Hacks 28 | . 28 . Successful 13 | . 13 . Failed 15 | . 15 . Catastrophic 4 | . 4 . Database Lockouts . | . . . Manual 24 | . 24 . Terminals 25 | . 25 . Fabricators . | . . . Repair Stations 3 | . 3 . Recycling Units . | . . . Scanalyzers . | . . . Garrison Access . | . . . Terminal Hacks 3 | . 3 . Robot Analysis 3 | . 3 . Fabricator Hacks . | . . . Repair Station Hacks 2 | . 2 . Scan Component 1 | . 1 . Repair 1 | . 1 . Recycling Unit Hacks . | . . . Scanalyzer . | . . . Garrison Access Hacks . | . . . Unauthorized Hacks 8 | . 8 . Terminals 8 | . 8 . Assimilate 1 | . 1 . Botnet 1 | . 1 . Operators 1 | . 1 . Skim 5 | . 5 . Fabricators . | . . . Repair Stations . | . . . Recycling Units . | . . . Scanalyzers . | . . . Garrison Access . | . . . Data Cores Recovered . | . . . Used . | . . . Hacking Detections 6 | . 6 . Full Trace Events . | . . . Feedback Events . | . . . Feedback Blocked . | . . . Robot Schematics Acquired . | . . . Robots Built . | . . . Authchips . | . . . Time . | . . . Total Robot Build Rating . | . . . Part Schematics Acquired . | . . . Parts Built . | . . . Authchips . | . . . Time . | . . . Total Part Build Rating . | . . . Parts Repaired 1 | . 1 . Time 26 | . 26 . Parts Recycled . | . . . Recycled Matter . | . . . Retrieved Matter . | . . . Retrieved Components . | . . . Parts Scanalyzed . | . . . Part Schematics Acquired . | . . . Parts Damaged . | . . . Bothacking | -11 -10 -10 ------------ Run | Yrd Mat Sub Used RIF Installer . | . . . Robots Hacked . | . . . Non-combat . | . . . Combat . | . . . Robot Hacks Applied . | . . . Relay Couplers Released . | . . . Fabnet Peak Effective % . | . . . Robots Rewired . | . . . Allies Hacked . | . . . Hacks Repelled . | . . . Allies | -11 -10 -10 -------- Run | Yrd Mat Sub Total Allies . | . . . Largest Group . | . . . Highest-Rated Group . | . . . Highest-Rated Ally . | . . . Total Orders . | . . . Ally Attacks . | . . . Total Damage . | . . . Kills . | . . . Allies Corrupted . | . . . Allies Melted . | . . . Intel | -11 -10 -10 ------- Run | Yrd Mat Sub Robot Analysis Total 3 | . 3 . Derelict Logs Recovered 2 | . . 2 Drone Launches . | . . . Drone Recoveries . | . . . Exploration | -11 -10 -10 ------------- Run | Yrd Mat Sub Turns Passed 5140 | 80 1422 3638 Spaces Moved 2521 | 47 703 1771 Core 10 | 7 . 3 Treads 2488 | 40 703 1745 Legs . | . . . Wheels 23 | . . 23 Hover . | . . . Flight . | . . . Fastest Speed 50 | 50 160 115 Average Speed 181 | 148 160 191 Slowest Speed 500 | 160 160 500 Overloaded Moves . | . . . Propulsion Burnouts . | . . . Robots Hopped . | . . . Cave-ins Triggered . | . . . Exploration Rate (%) 61 | 4 93 86 Regions Visited 2 Branch Regions 1 Pre-discovered Areas 1 | . . 1 Known Exits Taken 1 | . 1 . Unknown Exits Taken 1 | 1 . . Scrap Searched 13 | . . 13 Spaces Dug 4 | . . 4 Terrain Destroyed 16 | . 8 8 Melee . | . . . Projectile 8 | . . 8 AOE 8 | . 8 . Terrain Rammed . | . . . Walls Destroyed . | . . . Machines Disabled . | . . . Actions | -11 -10 -10 --------- Run | Yrd Mat Sub Total 2892 | 54 915 1923 Wait 202 | . 139 63 Move 2519 | 46 702 1771 Hop . | . . . Pick Up 18 | 2 11 5 Fast Attach 21 | 6 6 9 Attach 4 | . . 4 Detach 1 | . . 1 Swap 3 | . 1 2 Drop 17 | . 5 12 Fire 107 | . 51 56 Melee . | . . . Ram . | . . . Kick . | . . . Crush . | . . . Escape Stasis . | . . . Rewire . | . . . Trap . | . . . Miscellaneous . | . . . Route ------- -11/Scrapyard -10/Materials (discovered 6 exits: *Mat x3 / *Min x2 / *Sub) -10/Subcaves (discovered 2 exits: Mat x2) History --------- Turn | Location | Event 18 | -11/Scrapyard | Discovered new exit (range 16) 81 | -11/Scrapyard | Entered Materials 228 | -10/Materials | Discovered new exit (range 8) 325 | -10/Materials | Lost 3 parts (1p2w) 342 | -10/Materials | Build established: Mutant 389 | -10/Materials | Discovered new exit (range 12) 567 | -10/Materials | Discovered new exit (range 11) 884 | -10/Materials | Discovered new exit (range 10) 1220 | -10/Materials | Learned location of 2 exits from Mines 1260 | -10/Materials | Identified exit to Materials 1260 | -10/Materials | Identified exit to Subcaves 1298 | -10/Materials | Repaired Lgt. Treads 1328 | -10/Materials | Identified exit to Mines 1503 | -10/Materials | Entered Subcaves 1504 | -10/Subcaves | Identified exit to Materials 1871 | -10/Subcaves | Learned location of Zion (-6) 1996 | -10/Subcaves | Ambushed by Subdwellers from Twisted Machinery 2095 | -10/Subcaves | Core integrity fell below 50% 2999 | -10/Subcaves | Core integrity fell below 20% 3273 | -10/Subcaves | A swath of the cavern ceiling suddenly collapsed 4690 | -10/Subcaves | Shifting Twisted Machinery released Sub. Laser 4693 | -10/Subcaves | Shifting Twisted Machinery released Sub. Beam Cannon 5141 | -10/Subcaves | Destroyed by S-10 Pest with Light Assault Rifle Last Messages --------------- Machinery. Acquired 12 matter. Dropped Sub. Beam Cannon. Acquired Sub. Beam Cannon. Dropped Sub. Machine Gun. N6ERQL WUSTOK9XCZGFOVU0HV 58 %|U1J=YJSKTPN4SLH#AVI7ODYW6AAWJ9 B#EN=OGS%/WL87MQGYQFGCJGO System corrupted: Component data lost. /WZW72|VFSDQN 0=U,N8<0IKP>YZT< S-10 Pest destroyed. Spk. Treads destroyed. /KTOT&3HQON J 9N2TXJR4Z,LSLF2 7VZMP%5V S-10 Pest destroyed. Map ----- +----------------------------------------------------+ | ???????????????????????????########&! ##?## | | ?????????????????????????##########%[ ### | | ????????????????????????##" " ##""## | | ???????????????????????##" # ## # | | ???????????????????????# ### " "## ### #### | | ??###??????????????????#" ##?#"" ### ##?####??? | | ### #??????????????????# #??### #"" ##???????? | | "" #??????????????????# #????# ##??????? | | " #??????????????????# ###??# #??????? | | ####??????????????????# ##?# #"&[ #??????? | | ##?????????????????????# "#### ##%& ##?????? | | ##?????????????????????#"" * ##" ]#&! #?????? | | #?????????????????????#"" ] "## % ## #?????? | | #?????????????????????##%% %"##&""## #?????? | | #######???????#####????# " ""##&"### ##?????? | | #" ##?????## ####?###" ####### ##??????? | | #" ###???# #???####?????### #???????? | | " #???### #??????????????# ##???????? | | ### #??### #??????????????# #????????? | | & ### ##?## #?????????????## #????????? | | &% "### ###??# % %#?????????????# ##????????? | | %##?###????##% % ####??????? ### ##????????? | | ###??????## ###### ## #????????? | | ###??### s%= % % #####????????? | | % #### [%= #????????????? | | ## ## ####@## ## #????????????? | | ### * ## % #??###?##??%& %#????????????? | | ### %% ## #????##?### ??????????? | | ## ### #???? ## ?? ????????? | | % ######???? ????? ????????? | | ## ##????????## % ????????????????? | | ## ## ##??????### #?????????????????? | | ##### ##??#### ## #?????????????????? | | #??## #### % ## ## #?????????????????? | | ##?# #??##% %% ##????????????????? | | ### ###?## ###### #????????????????? | | ## #??# ###### ## #????????????????? | | ## ##??#% # ## ## ###??????????????? | | ## %##???# ### #??????????????? | | # #####????# # #?### #??####????##### | | ##????????# ## ! #??## ###### ##?### # | | ##?#####???# # % #?## #### =%## ### # % | | % ###*#]##??# # ### ### ## ### ## ### | | ##%&% %#??## ## ! % ### ### ##?### | | ##"!###??# #### ##??##?####???## | | ##[&#???# #??## #????????????##% | | #%###### #???### ####????????????# % | | "|" #?????# #####???????????????### | | ##?????#####?????????????????????? | | ####?###????????????????????????????? | +----------------------------------------------------+ Best States ------------- Heat Dissipation 25 Energy Generation 15 Energy Capacity 265 Matter Stores 300 Matter Capacity 300 Sight Range 16 Terrain Scan Density 10 Weapon Shielding 33 Evasion (%) 40 Targeting Accuracy 5 Recoil Reduction 2 Item Schematics ----------------- None Robot Schematics ------------------ None Fabricated ------------ Nothing Alien Tech Used ----------------- None Achievements -------------- None Challenges ------------ None Game ------ Seed ImprovedAlphaScanner Manual? 0 Play Time 00:20:58 Cumulative 560.0 hours Start 2024.08.12 @ 13:46:49 End 2024.08.12 @ 14:07:44 Sessions 1 Manual Loads 0 Difficulty Rogue Special Mode None Game No. 323 Rogue 323 Adventurer 0 Explorer 0 Win Type - Total 36 Types 22/2/4/3/1/1/1/1/1 Lore% 97 Gallery% 98 Achievement% 98 Wizard Run 0 Options --------- Layout 1 ASCII 0 Keyboard 0 Movement Numpad Keybinds 0 Fullscreen 1 Font 24/Smallcaps Map View 50x35 Zoom Use 0% Tactical HUD 1 Map Filters NONE Filters NONE Steam 1 RUN: 931903eb-9ad8-4a24-8bcc-732771872b58